[Event "Titled Tuesday Blitz July 20 2021"]
[White "Aradhya, Garg"]
[Black "Martins, Igor Carvalho Ribeiro"]
[WhiteFideId "25006746"]
[BlackFideId "2162962"]
[WhiteElo "2146"]
[BlackElo "2530"]
[Result "1-0"]
[Round "10"]
[TimeControl "180+1"]
[Date "2021.07.21"]
[WhiteClock "0:00:49"]
[BlackClock "0:00:17"]

1. d4 {[%clk 0:03:00]}  Nf6 {[%clk 0:02:59]} 2. c4 {[%clk 0:03:01]}  e6 {[%clk 0:02:57]} 3. Nf3 {[%clk 0:03:01]}  Bb4+ {[%clk 0:02:56]} 4. Nbd2 {[%clk 0:03:00]}  b6 {[%clk 0:02:56]} 5. g3 {[%clk 0:03:00]}  Bb7 {[%clk 0:02:55]} 6. Bg2 {[%clk 0:03:00]}  O-O {[%clk 0:02:54]} 7. O-O {[%clk 0:03:01]}  Bxd2 {[%clk 0:02:54]} 8. Bxd2 {[%clk 0:02:59]}  d6 {[%clk 0:02:53]} 9. b4 {[%clk 0:02:57]}  Nbd7 {[%clk 0:02:52]} 10. a4 {[%clk 0:02:57]}  c5 {[%clk 0:02:50]} 11. dxc5 {[%clk 0:02:56]}  dxc5 {[%clk 0:02:41]} 12. b5 {[%clk 0:02:56]}  Ne4 {[%clk 0:02:37]} 13. Bf4 {[%clk 0:02:26]}  Ndf6 {[%clk 0:02:18]} 14. Qc2 {[%clk 0:02:26]}  a5 {[%clk 0:02:08]} 15. Ne5 {[%clk 0:02:08]}  Rc8 {[%clk 0:01:20]} 16. Nc6 {[%clk 0:01:50]}  Bxc6 {[%clk 0:01:18]} 17. bxc6 {[%clk 0:01:48]}  e5 {[%clk 0:01:00]} 18. Bxe5 {[%clk 0:01:43]}  Re8 {[%clk 0:00:59]} 19. Rfd1 {[%clk 0:01:28]}  Qe7 {[%clk 0:00:58]} 20. Bxf6 {[%clk 0:01:27]}  Nxf6 {[%clk 0:00:57]} 21. Rab1 {[%clk 0:01:27]}  Rb8 {[%clk 0:00:54]} 22. Rd2 {[%clk 0:01:15]}  Red8 {[%clk 0:00:49]} 23. Rbd1 {[%clk 0:01:05]}  Rxd2 {[%clk 0:00:39]} 24. Qxd2 {[%clk 0:01:05]}  g6 {[%clk 0:00:33]} 25. Qd6 {[%clk 0:00:59]}  Qxd6 {[%clk 0:00:27]} 26. Rxd6 {[%clk 0:01:00]}  Ne8 {[%clk 0:00:28]} 27. Rd7 {[%clk 0:00:58]}  Nf6 {[%clk 0:00:20]} 28. Ra7 {[%clk 0:00:48]}  Kf8 {[%clk 0:00:18]} 29. c7 {[%clk 0:00:48]}  Rc8 {[%clk 0:00:17]} 30. Bh3 {[%clk 0:00:49]} 1-0


[Site "https://www.chess.com"]

[Event "Titled Tuesday Blitz July 20 2021"]
[White "Arnold, Ken"]
[Black "Pinheiro, Iung Alicio de O."]
[WhiteFideId "2056836"]
[BlackFideId "2104350"]
[WhiteElo "2496"]
[BlackElo "2608"]
[Result "1-0"]
[Round "10"]
[TimeControl "180+1"]
[Date "2021.07.21"]
[WhiteClock "0:00:37"]
[BlackClock "0:00:19"]

1. d4 {[%clk 0:03:00]}  Nf6 {[%clk 0:02:59]} 2. c4 {[%clk 0:03:00]}  g6 {[%clk 0:02:59]} 3. Nf3 {[%clk 0:03:01]}  Bg7 {[%clk 0:02:59]} 4. Nc3 {[%clk 0:03:01]}  O-O {[%clk 0:03:00]} 5. Bg5 {[%clk 0:03:01]}  d6 {[%clk 0:03:00]} 6. e4 {[%clk 0:03:01]}  Na6 {[%clk 0:02:55]} 7. Be2 {[%clk 0:02:59]}  Qe8 {[%clk 0:02:53]} 8. O-O {[%clk 0:02:58]}  e5 {[%clk 0:02:54]} 9. d5 {[%clk 0:02:58]}  Nc5 {[%clk 0:02:53]} 10. Nd2 {[%clk 0:02:56]}  a5 {[%clk 0:02:54]} 11. b3 {[%clk 0:02:54]}  Bd7 {[%clk 0:02:53]} 12. a3 {[%clk 0:02:54]}  h6 {[%clk 0:02:39]} 13. Be3 {[%clk 0:02:47]}  Nh7 {[%clk 0:02:22]} 14. b4 {[%clk 0:02:45]}  axb4 {[%clk 0:02:07]} 15. axb4 {[%clk 0:02:45]}  Na6 {[%clk 0:02:06]} 16. Qb3 {[%clk 0:02:39]}  f5 {[%clk 0:02:06]} 17. f3 {[%clk 0:02:37]}  Qe7 {[%clk 0:01:56]} 18. c5 {[%clk 0:02:33]}  Kh8 {[%clk 0:01:02]} 19. c6 {[%clk 0:02:30]}  Bc8 {[%clk 0:00:54]} 20. cxb7 {[%clk 0:01:39]}  Bxb7 {[%clk 0:00:53]} 21. Ra5 {[%clk 0:01:29]}  Nb8 {[%clk 0:00:34]} 22. Rxa8 {[%clk 0:01:24]}  Bxa8 {[%clk 0:00:35]} 23. Ra1 {[%clk 0:01:23]}  Nd7 {[%clk 0:00:34]} 24. Ra7 {[%clk 0:01:20]}  Ndf6 {[%clk 0:00:34]} 25. b5 {[%clk 0:01:16]}  Qd8 {[%clk 0:00:30]} 26. Qc4 {[%clk 0:01:05]}  fxe4 {[%clk 0:00:30]} 27. Ndxe4 {[%clk 0:01:00]}  Ne8 {[%clk 0:00:29]} 28. Na4 {[%clk 0:00:51]}  Nhf6 {[%clk 0:00:29]} 29. Nxf6 {[%clk 0:00:49]}  Nxf6 {[%clk 0:00:28]} 30. Nc3 {[%clk 0:00:44]}  e4 {[%clk 0:00:28]} 31. fxe4 {[%clk 0:00:42]}  Nd7 {[%clk 0:00:27]} 32. Qxc7 {[%clk 0:00:38]}  Nf6 {[%clk 0:00:19]} 33. Qxg7# {[%clk 0:00:37]} 1-0


[Site "https://www.chess.com"]

[Event "Titled Tuesday Blitz July 20 2021"]
[White "Baskin, Robert"]
[Black "Tristan, Leonardo"]
[WhiteFideId "24662402"]
[BlackFideId "113816"]
[WhiteElo "2462"]
[BlackElo "2404"]
[Result "0-1"]
[Round "10"]
[TimeControl "180+1"]
[Date "2021.07.20"]
[WhiteClock "0:00:05"]
[BlackClock "0:00:22"]

1. e4 {[%clk 0:03:00]}  c5 {[%clk 0:03:00]} 2. Nf3 {[%clk 0:03:00]}  Nc6 {[%clk 0:03:00]} 3. Bb5 {[%clk 0:02:57]}  g6 {[%clk 0:03:00]} 4. Bxc6 {[%clk 0:02:52]}  dxc6 {[%clk 0:03:01]} 5. d3 {[%clk 0:02:50]}  Bg7 {[%clk 0:03:02]} 6. h3 {[%clk 0:02:48]}  e5 {[%clk 0:03:02]} 7. Be3 {[%clk 0:02:43]}  b6 {[%clk 0:03:02]} 8. a3 {[%clk 0:02:43]}  Qc7 {[%clk 0:02:41]} 9. b4 {[%clk 0:02:36]}  Ne7 {[%clk 0:02:23]} 10. bxc5 {[%clk 0:02:30]}  b5 {[%clk 0:02:24]} 11. Qd2 {[%clk 0:02:18]}  h6 {[%clk 0:02:22]} 12. Nc3 {[%clk 0:02:13]}  f5 {[%clk 0:02:22]} 13. Qc1 {[%clk 0:01:14]}  Be6 {[%clk 0:02:21]} 14. Ne2 {[%clk 0:01:04]}  a5 {[%clk 0:02:16]} 15. d4 {[%clk 0:01:00]}  f4 {[%clk 0:02:08]} 16. Bd2 {[%clk 0:01:00]}  g5 {[%clk 0:02:08]} 17. Nxe5 {[%clk 0:00:58]}  Bxe5 {[%clk 0:01:59]} 18. dxe5 {[%clk 0:00:59]}  Ng6 {[%clk 0:02:00]} 19. Bc3 {[%clk 0:00:58]}  O-O {[%clk 0:01:56]} 20. f3 {[%clk 0:00:52]}  Bc4 {[%clk 0:01:56]} 21. Nd4 {[%clk 0:00:51]}  Qxe5 {[%clk 0:01:49]} 22. Qd2 {[%clk 0:00:26]}  Qxc5 {[%clk 0:01:36]} 23. Kf2 {[%clk 0:00:27]}  Rad8 {[%clk 0:01:31]} 24. Rhd1 {[%clk 0:00:27]}  Rd7 {[%clk 0:01:25]} 25. Kg1 {[%clk 0:00:24]}  Rfd8 {[%clk 0:01:25]} 26. Kh1 {[%clk 0:00:20]}  b4 {[%clk 0:01:05]} 27. axb4 {[%clk 0:00:19]}  axb4 {[%clk 0:01:06]} 28. Bb2 {[%clk 0:00:19]}  Ne5 {[%clk 0:01:07]} 29. Kh2 {[%clk 0:00:18]}  Bf7 {[%clk 0:01:06]} 30. c3 {[%clk 0:00:11]}  Nc4 {[%clk 0:01:03]} 31. cxb4 {[%clk 0:00:11]}  Nxd2 {[%clk 0:00:40]} 32. bxc5 {[%clk 0:00:11]}  Nb3 {[%clk 0:00:40]} 33. Ra4 {[%clk 0:00:10]}  Nxc5 {[%clk 0:00:35]} 34. Rb4 {[%clk 0:00:07]}  Nb3 {[%clk 0:00:32]} 35. Rxb3 {[%clk 0:00:06]}  Bxb3 {[%clk 0:00:32]} 36. Rc1 {[%clk 0:00:06]}  Rxd4 {[%clk 0:00:31]} 37. Bxd4 {[%clk 0:00:06]}  Rxd4 {[%clk 0:00:32]} 38. Rxc6 {[%clk 0:00:07]}  Kg7 {[%clk 0:00:33]} 39. h4 {[%clk 0:00:07]}  gxh4 {[%clk 0:00:24]} 40. Kh3 {[%clk 0:00:07]}  Rd2 {[%clk 0:00:25]} 41. Rc5 {[%clk 0:00:06]}  Be6+ {[%clk 0:00:24]} 42. Kxh4 {[%clk 0:00:07]}  Rxg2 {[%clk 0:00:24]} 43. Rc7+ {[%clk 0:00:05]}  Kf6 {[%clk 0:00:23]} 44. e5+ {[%clk 0:00:06]}  Kxe5 {[%clk 0:00:22]} 45. Rc5+ {[%clk 0:00:06]}  Bd5 {[%clk 0:00:22]} 46. Kh3 {[%clk 0:00:05]}  Rg3+ {[%clk 0:00:21]} 47. Kh4 {[%clk 0:00:06]}  Rxf3 {[%clk 0:00:21]} 48. Rc8 {[%clk 0:00:05]}  Rf1 {[%clk 0:00:21]} 49. Re8+ {[%clk 0:00:05]}  Kd4 {[%clk 0:00:22]} 0-1


[Site "https://www.chess.com"]

[Event "Titled Tuesday Blitz July 20 2021"]
[White "Borsuk, Konstantin"]
[Black "Krallis, Christos"]
[WhiteFideId "14113406"]
[BlackFideId "4298896"]
[WhiteElo "2363"]
[BlackElo "2193"]
[Result "1-0"]
[Round "10"]
[TimeControl "180+1"]
[Date "2021.07.21"]
[WhiteClock "0:00:28"]
[BlackClock "0:00:02"]

1. d4 {[%clk 0:03:00]}  Nf6 {[%clk 0:02:59]} 2. c4 {[%clk 0:03:01]}  e6 {[%clk 0:02:57]} 3. Nc3 {[%clk 0:03:01]}  d5 {[%clk 0:02:58]} 4. cxd5 {[%clk 0:03:00]}  exd5 {[%clk 0:02:58]} 5. Bg5 {[%clk 0:03:00]}  Be7 {[%clk 0:02:57]} 6. e3 {[%clk 0:03:00]}  O-O {[%clk 0:02:55]} 7. Bd3 {[%clk 0:03:00]}  h6 {[%clk 0:02:51]} 8. Bh4 {[%clk 0:02:59]}  c6 {[%clk 0:02:46]} 9. Qc2 {[%clk 0:02:58]}  Nbd7 {[%clk 0:02:42]} 10. Nf3 {[%clk 0:02:58]}  Re8 {[%clk 0:02:39]} 11. O-O-O {[%clk 0:02:54]}  Ne4 {[%clk 0:02:37]} 12. Bxe7 {[%clk 0:02:50]}  Qxe7 {[%clk 0:02:36]} 13. Bxe4 {[%clk 0:02:50]}  dxe4 {[%clk 0:02:37]} 14. Nd2 {[%clk 0:02:50]}  Nf6 {[%clk 0:02:37]} 15. h3 {[%clk 0:02:47]}  Bf5 {[%clk 0:01:58]} 16. g4 {[%clk 0:02:36]}  Bh7 {[%clk 0:01:58]} 17. Rdg1 {[%clk 0:02:33]}  Nd5 {[%clk 0:01:57]} 18. Kb1 {[%clk 0:02:01]}  Nb4 {[%clk 0:01:52]} 19. Qb3 {[%clk 0:02:00]}  Nd3 {[%clk 0:01:52]} 20. Rg2 {[%clk 0:01:59]}  Nf4 {[%clk 0:01:36]} 21. Rg3 {[%clk 0:01:48]}  Nd3 {[%clk 0:01:35]} 22. Rh2 {[%clk 0:01:42]}  Qd6 {[%clk 0:01:15]} 23. g5 {[%clk 0:01:32]}  Nxf2 {[%clk 0:01:01]} 24. Rhg2 {[%clk 0:01:25]}  Nh1 {[%clk 0:00:46]} 25. Rg4 {[%clk 0:01:19]}  h5 {[%clk 0:00:44]} 26. Rf4 {[%clk 0:01:12]}  Qxf4 {[%clk 0:00:16]} 27. exf4 {[%clk 0:01:09]}  e3+ {[%clk 0:00:16]} 28. g6 {[%clk 0:01:10]}  Bxg6+ {[%clk 0:00:12]} 29. Rxg6 {[%clk 0:01:09]}  exd2 {[%clk 0:00:05]} 30. Rg2 {[%clk 0:01:06]}  Re1+ {[%clk 0:00:03]} 31. Kc2 {[%clk 0:01:06]}  Rae8 {[%clk 0:00:02]} 32. Kxd2 {[%clk 0:01:04]}  h4 {[%clk 0:00:02]} 33. Qxb7 {[%clk 0:01:02]}  Ng3 {[%clk 0:00:01]} 34. Qxc6 {[%clk 0:01:02]}  Nf1+ {[%clk 0:00:01]} 35. Kc2 {[%clk 0:00:58]}  Ne3+ {[%clk 0:00:01]} 36. Kb3 {[%clk 0:00:59]}  Nxg2 {[%clk 0:00:02]} 37. Qxg2 {[%clk 0:00:58]}  R1e7 {[%clk 0:00:03]} 38. d5 {[%clk 0:00:56]}  Rb8+ {[%clk 0:00:04]} 39. Kc4 {[%clk 0:00:54]}  Reb7 {[%clk 0:00:04]} 40. b3 {[%clk 0:00:53]}  Rb4+ {[%clk 0:00:05]} 41. Kc5 {[%clk 0:00:53]}  Rxf4 {[%clk 0:00:04]} 42. Ne4 {[%clk 0:00:52]}  Re8 {[%clk 0:00:03]} 43. Nd6 {[%clk 0:00:51]}  Re3 {[%clk 0:00:02]} 44. Qg5 {[%clk 0:00:47]}  Rc3+ {[%clk 0:00:01]} 45. Kb5 {[%clk 0:00:46]}  Rf6 {[%clk 0:00:02]} 46. Nc4 {[%clk 0:00:43]}  Rd3 {[%clk 0:00:02]} 47. d6 {[%clk 0:00:43]}  Rdf3 {[%clk 0:00:01]} 48. Qxh4 {[%clk 0:00:42]}  R3f5+ {[%clk 0:00:01]} 49. Kb4 {[%clk 0:00:42]}  Rf4 {[%clk 0:00:02]} 50. Qe1 {[%clk 0:00:40]}  Rxd6 {[%clk 0:00:01]} 51. Qe5 {[%clk 0:00:37]}  Rdf6 {[%clk 0:00:02]} 52. a4 {[%clk 0:00:35]}  a5+ {[%clk 0:00:02]} 53. Qxa5 {[%clk 0:00:34]}  Kh7 {[%clk 0:00:02]} 54. Qh5+ {[%clk 0:00:33]}  Rh6 {[%clk 0:00:03]} 55. Qg5 {[%clk 0:00:32]}  Rfh4 {[%clk 0:00:04]} 56. Qf5+ {[%clk 0:00:31]}  Kg8 {[%clk 0:00:04]} 57. Qc8+ {[%clk 0:00:31]}  Kh7 {[%clk 0:00:04]} 58. a5 {[%clk 0:00:32]}  Rxh3 {[%clk 0:00:04]} 59. a6 {[%clk 0:00:32]}  Rh1 {[%clk 0:00:02]} 60. a7 {[%clk 0:00:32]}  Ra1 {[%clk 0:00:02]} 61. a8=Q {[%clk 0:00:32]}  Rxa8 {[%clk 0:00:03]} 62. Qxa8 {[%clk 0:00:32]}  Rf6 {[%clk 0:00:04]} 63. Qe4+ {[%clk 0:00:32]}  g6 {[%clk 0:00:04]} 64. Kc3 {[%clk 0:00:28]}  Re6 {[%clk 0:00:03]} 65. Qd5 {[%clk 0:00:27]}  Kg7 {[%clk 0:00:03]} 66. b4 {[%clk 0:00:28]}  Re1 {[%clk 0:00:02]} 67. b5 {[%clk 0:00:28]}  Rc1+ {[%clk 0:00:02]} 68. Kb2 {[%clk 0:00:28]}  Rg1 {[%clk 0:00:02]} 69. Qd4+ {[%clk 0:00:28]} 1-0


[Site "https://www.chess.com"]

[Event "Titled Tuesday Blitz July 20 2021"]
[White "Boskovic, Drasko"]
[Black "Ovchinnikov, Vsevolod"]
[WhiteFideId "927368"]
[BlackFideId "24176842"]
[WhiteElo "2388"]
[BlackElo "2376"]
[Result "0-1"]
[Round "10"]
[TimeControl "180+1"]
[Date "2021.07.21"]
[WhiteClock "0:01:12"]
[BlackClock "0:01:03"]

1. e4 {[%clk 0:02:58]}  g6 {[%clk 0:03:00]} 2. d4 {[%clk 0:02:57]}  Bg7 {[%clk 0:03:00]} 3. g3 {[%clk 0:02:57]}  d6 {[%clk 0:02:59]} 4. Bg2 {[%clk 0:02:57]}  Nf6 {[%clk 0:03:00]} 5. Nc3 {[%clk 0:02:56]}  O-O {[%clk 0:03:00]} 6. Nge2 {[%clk 0:02:55]}  Nbd7 {[%clk 0:03:01]} 7. O-O {[%clk 0:02:54]}  Rb8 {[%clk 0:03:02]} 8. h3 {[%clk 0:02:54]}  b5 {[%clk 0:03:01]} 9. a3 {[%clk 0:02:53]}  a6 {[%clk 0:02:56]} 10. Be3 {[%clk 0:02:48]}  Bb7 {[%clk 0:02:55]} 11. g4 {[%clk 0:02:46]}  Qc8 {[%clk 0:02:47]} 12. Ng3 {[%clk 0:02:46]}  c5 {[%clk 0:02:47]} 13. d5 {[%clk 0:02:45]}  Nb6 {[%clk 0:02:43]} 14. b3 {[%clk 0:02:44]}  Nxg4 {[%clk 0:02:40]} 15. hxg4 {[%clk 0:02:42]}  Bxc3 {[%clk 0:02:40]} 16. Rb1 {[%clk 0:02:42]}  Rd8 {[%clk 0:02:35]} 17. g5 {[%clk 0:02:40]}  e6 {[%clk 0:02:30]} 18. Bh3 {[%clk 0:02:39]}  Qd7 {[%clk 0:02:29]} 19. Qf3 {[%clk 0:02:36]}  Bg7 {[%clk 0:02:25]} 20. c4 {[%clk 0:02:30]}  Qe7 {[%clk 0:02:20]} 21. Rbc1 {[%clk 0:02:21]}  bxc4 {[%clk 0:02:18]} 22. bxc4 {[%clk 0:02:22]}  Bc8 {[%clk 0:02:15]} 23. Kg2 {[%clk 0:02:21]}  exd5 {[%clk 0:02:02]} 24. exd5 {[%clk 0:02:18]}  Bxh3+ {[%clk 0:02:02]} 25. Kxh3 {[%clk 0:02:19]}  Re8 {[%clk 0:02:00]} 26. Kg2 {[%clk 0:02:17]}  Nd7 {[%clk 0:01:58]} 27. Rh1 {[%clk 0:02:03]}  Rb2 {[%clk 0:01:48]} 28. Rce1 {[%clk 0:02:00]}  Ne5 {[%clk 0:01:44]} 29. Qe4 {[%clk 0:02:00]}  Qd8 {[%clk 0:01:33]} 30. Qh4 {[%clk 0:01:58]}  h5 {[%clk 0:01:31]} 31. gxh6 {[%clk 0:01:49]}  Qxh4 {[%clk 0:01:30]} 32. Rxh4 {[%clk 0:01:50]}  Bf8 {[%clk 0:01:31]} 33. h7+ {[%clk 0:01:51]}  Kh8 {[%clk 0:01:30]} 34. Bg5 {[%clk 0:01:34]}  Rxf2+ {[%clk 0:01:22]} 35. Kxf2 {[%clk 0:01:33]}  Nd3+ {[%clk 0:01:22]} 36. Kf3 {[%clk 0:01:22]}  Nxe1+ {[%clk 0:01:22]} 37. Kg4 {[%clk 0:01:21]}  f5+ {[%clk 0:01:10]} 38. Nxf5 {[%clk 0:01:20]}  gxf5+ {[%clk 0:01:10]} 39. Kxf5 {[%clk 0:01:20]}  Bg7 {[%clk 0:01:10]} 40. Kg6 {[%clk 0:01:19]}  Nf3 {[%clk 0:01:07]} 41. Bf6 {[%clk 0:01:12]}  Nxh4+ {[%clk 0:01:03]} 42. Kf7 {[%clk 0:01:12]}  Rf8+ {[%clk 0:01:03]} 0-1


[Site "https://www.chess.com"]

[Event "Titled Tuesday Blitz July 20 2021"]
[White "Czerw, Dawid"]
[Black "Navalgund, Niranjan"]
[WhiteFideId "1145746"]
[BlackFideId "5030854"]
[WhiteElo "2075"]
[BlackElo "2290"]
[Result "1/2-1/2"]
[Round "10"]
[TimeControl "180+1"]
[Date "2021.07.21"]
[WhiteClock "0:00:02"]
[BlackClock "0:00:52"]

1. c3 {[%clk 0:02:52]}  e5 {[%clk 0:02:59]} 2. d4 {[%clk 0:02:50]}  d6 {[%clk 0:02:59]} 3. h3 {[%clk 0:02:49]}  Nf6 {[%clk 0:02:58]} 4. dxe5 {[%clk 0:02:46]}  dxe5 {[%clk 0:02:59]} 5. Qxd8+ {[%clk 0:02:47]}  Kxd8 {[%clk 0:03:00]} 6. Nf3 {[%clk 0:02:47]}  Bd6 {[%clk 0:03:00]} 7. Nbd2 {[%clk 0:02:44]}  Ke7 {[%clk 0:03:01]} 8. Nc4 {[%clk 0:02:44]}  Be6 {[%clk 0:03:00]} 9. Ncxe5 {[%clk 0:02:43]}  Rd8 {[%clk 0:02:56]} 10. g4 {[%clk 0:02:33]}  h6 {[%clk 0:02:56]} 11. Rg1 {[%clk 0:02:32]}  Ne4 {[%clk 0:02:57]} 12. Be3 {[%clk 0:02:27]}  Na6 {[%clk 0:02:51]} 13. O-O-O {[%clk 0:02:23]}  Bxa2 {[%clk 0:02:50]} 14. Rd4 {[%clk 0:02:05]}  Nac5 {[%clk 0:02:46]} 15. Kc2 {[%clk 0:01:57]}  Bb3+ {[%clk 0:02:44]} 16. Kc1 {[%clk 0:01:52]}  a5 {[%clk 0:02:41]} 17. Nd3 {[%clk 0:01:48]}  Be6 {[%clk 0:02:36]} 18. Nxc5 {[%clk 0:01:45]}  Nxc5 {[%clk 0:02:37]} 19. Bg2 {[%clk 0:01:37]}  Nb3+ {[%clk 0:02:36]} 20. Kc2 {[%clk 0:01:37]}  Nxd4+ {[%clk 0:02:37]} 21. Nxd4 {[%clk 0:01:37]}  c6 {[%clk 0:02:37]} 22. f4 {[%clk 0:01:37]}  Bd5 {[%clk 0:02:32]} 23. Nf5+ {[%clk 0:01:36]}  Kd7 {[%clk 0:02:30]} 24. Bxd5 {[%clk 0:01:33]}  cxd5 {[%clk 0:02:31]} 25. Nxg7 {[%clk 0:01:34]}  a4 {[%clk 0:02:25]} 26. Nf5 {[%clk 0:01:31]}  a3 {[%clk 0:02:24]} 27. b4 {[%clk 0:01:27]}  Bf8 {[%clk 0:02:19]} 28. Ra1 {[%clk 0:01:22]}  Rdc8 {[%clk 0:02:16]} 29. Kb3 {[%clk 0:01:20]}  Rc6 {[%clk 0:02:14]} 30. Bd4 {[%clk 0:01:18]}  Re6 {[%clk 0:02:12]} 31. e3 {[%clk 0:01:17]}  Rea6 {[%clk 0:02:12]} 32. Ra2 {[%clk 0:01:16]}  Ke6 {[%clk 0:02:10]} 33. Ng3 {[%clk 0:01:01]}  f6 {[%clk 0:02:07]} 34. Nf1 {[%clk 0:00:58]}  Kf7 {[%clk 0:02:06]} 35. Nd2 {[%clk 0:00:57]}  Kg6 {[%clk 0:02:00]} 36. Nb1 {[%clk 0:00:57]}  h5 {[%clk 0:01:59]} 37. Rxa3 {[%clk 0:00:56]}  hxg4 {[%clk 0:01:59]} 38. hxg4 {[%clk 0:00:56]}  Kf7 {[%clk 0:01:57]} 39. Rxa6 {[%clk 0:00:54]}  bxa6 {[%clk 0:01:57]} 40. Ka4 {[%clk 0:00:51]}  Be7 {[%clk 0:01:56]} 41. Nd2 {[%clk 0:00:50]}  Bd8 {[%clk 0:01:52]} 42. Nb3 {[%clk 0:00:47]}  Be7 {[%clk 0:01:50]} 43. Ka5 {[%clk 0:00:31]}  Bd8+ {[%clk 0:01:49]} 44. Bb6 {[%clk 0:00:27]}  Be7 {[%clk 0:01:48]} 45. Nd4 {[%clk 0:00:22]}  Ke8 {[%clk 0:01:45]} 46. Nc6 {[%clk 0:00:12]}  Kd7 {[%clk 0:01:36]} 47. Na7 {[%clk 0:00:11]}  Rg8 {[%clk 0:01:33]} 48. Kxa6 {[%clk 0:00:11]}  Rxg4 {[%clk 0:01:32]} 49. Bd4 {[%clk 0:00:11]}  Rg1 {[%clk 0:01:31]} 50. Kb7 {[%clk 0:00:10]}  Rc1 {[%clk 0:01:21]} 51. b5 {[%clk 0:00:10]}  f5 {[%clk 0:01:22]} 52. b6 {[%clk 0:00:09]}  Rb1 {[%clk 0:01:18]} 53. Nc6 {[%clk 0:00:09]}  Bd6 {[%clk 0:01:19]} 54. Ne5+ {[%clk 0:00:08]}  Bxe5 {[%clk 0:01:16]} 55. Bxe5 {[%clk 0:00:09]}  Rb5 {[%clk 0:01:15]} 56. Bd4 {[%clk 0:00:08]}  Rb3 {[%clk 0:01:14]} 57. Be5 {[%clk 0:00:07]}  Ra3 {[%clk 0:01:13]} 58. Bd4 {[%clk 0:00:02]}  Ra2 {[%clk 0:01:12]} 59. Be5 {[%clk 0:00:02]}  Ra5 {[%clk 0:01:00]} 60. Bd4 {[%clk 0:00:02]}  Ra2 {[%clk 0:00:59]} 61. Be5 {[%clk 0:00:02]}  Kd8 {[%clk 0:00:59]} 62. Bb8 {[%clk 0:00:02]}  Kd7 {[%clk 0:00:58]} 63. Ba7 {[%clk 0:00:02]}  Rb2 {[%clk 0:00:56]} 64. Bb8 {[%clk 0:00:02]}  Rb3 {[%clk 0:00:56]} 65. Be5 {[%clk 0:00:02]}  Rb1 {[%clk 0:00:54]} 66. Bd4 {[%clk 0:00:01]}  Rb3 {[%clk 0:00:52]} 67. Be5 {[%clk 0:00:02]} 1/2-1/2


[Site "https://www.chess.com"]

[Event "Titled Tuesday Blitz July 20 2021"]
[White "Derraugh, Geordie"]
[Black "Derige Kane, Yan"]
[WhiteFideId "2603950"]
[BlackFideId "20665431"]
[WhiteElo "2132"]
[BlackElo "2169"]
[Result "1-0"]
[Round "10"]
[TimeControl "180+1"]
[Date "2021.07.21"]
[WhiteClock "0:01:28"]
[BlackClock "0:02:26"]

1. e4 {[%clk 0:02:58]}  c5 {[%clk 0:02:57]} 2. Nf3 {[%clk 0:02:58]}  Nc6 {[%clk 0:02:58]} 3. Bb5 {[%clk 0:02:57]}  e6 {[%clk 0:02:58]} 4. Bxc6 {[%clk 0:02:57]}  bxc6 {[%clk 0:02:59]} 5. O-O {[%clk 0:02:56]}  Ne7 {[%clk 0:02:59]} 6. Re1 {[%clk 0:02:55]}  Ng6 {[%clk 0:02:59]} 7. d4 {[%clk 0:02:52]}  cxd4 {[%clk 0:02:59]} 8. Qxd4 {[%clk 0:02:53]}  f6 {[%clk 0:02:57]} 9. e5 {[%clk 0:02:47]}  fxe5 {[%clk 0:02:50]} 10. Nxe5 {[%clk 0:02:48]}  Qf6 {[%clk 0:02:50]} 11. f4 {[%clk 0:02:31]}  Rb8 {[%clk 0:02:39]} 12. c3 {[%clk 0:02:07]}  Rb5 {[%clk 0:02:38]} 13. b4 {[%clk 0:01:38]}  c5 {[%clk 0:02:29]} 14. Qd3 {[%clk 0:01:29]}  Ba6 {[%clk 0:02:26]} 15. Qxd7# {[%clk 0:01:28]} 1-0


[Site "https://www.chess.com"]

[Event "Titled Tuesday Blitz July 20 2021"]
[White "Eynullayev, Atilla"]
[Black "FGHSMN"]
[WhiteFideId "13413570"]
[WhiteElo "1997"]
[BlackElo "2544"]
[Result "0-1"]
[Round "10"]
[TimeControl "180+1"]
[Date "2021.07.21"]
[WhiteClock "0:00:07"]
[BlackClock "0:00:35"]

1. e4 {[%clk 0:03:00]}  c5 {[%clk 0:02:58]} 2. Nf3 {[%clk 0:03:00]}  e6 {[%clk 0:02:57]} 3. d4 {[%clk 0:03:00]}  cxd4 {[%clk 0:02:58]} 4. Nxd4 {[%clk 0:03:01]}  a6 {[%clk 0:02:59]} 5. Bd3 {[%clk 0:03:00]}  Nf6 {[%clk 0:02:57]} 6. c4 {[%clk 0:02:59]}  Qc7 {[%clk 0:02:57]} 7. Nc3 {[%clk 0:02:58]}  Be7 {[%clk 0:02:58]} 8. O-O {[%clk 0:02:58]}  d6 {[%clk 0:02:58]} 9. Re1 {[%clk 0:02:55]}  O-O {[%clk 0:02:58]} 10. h3 {[%clk 0:02:55]}  Nbd7 {[%clk 0:02:57]} 11. Nf3 {[%clk 0:02:45]}  b6 {[%clk 0:02:56]} 12. Bf4 {[%clk 0:02:45]}  Bb7 {[%clk 0:02:53]} 13. Rc1 {[%clk 0:02:44]}  Rac8 {[%clk 0:02:51]} 14. b3 {[%clk 0:02:38]}  Rfd8 {[%clk 0:02:43]} 15. Qd2 {[%clk 0:02:27]}  Qb8 {[%clk 0:02:40]} 16. a4 {[%clk 0:02:14]}  Ne5 {[%clk 0:02:39]} 17. Nxe5 {[%clk 0:02:04]}  dxe5 {[%clk 0:02:40]} 18. Bg3 {[%clk 0:01:59]}  Bc5 {[%clk 0:02:39]} 19. Qe2 {[%clk 0:01:50]}  Rd7 {[%clk 0:02:34]} 20. Na2 {[%clk 0:01:35]}  Rcd8 {[%clk 0:02:33]} 21. Rcd1 {[%clk 0:01:15]}  Bxe4 {[%clk 0:02:22]} 22. Bxe4 {[%clk 0:01:13]}  Rxd1 {[%clk 0:02:23]} 23. Bxh7+ {[%clk 0:01:11]}  Kxh7 {[%clk 0:02:17]} 24. Rxd1 {[%clk 0:01:09]}  Rxd1+ {[%clk 0:02:18]} 25. Qxd1 {[%clk 0:01:09]}  Ne4 {[%clk 0:02:14]} 26. Qh5+ {[%clk 0:00:40]}  Kg8 {[%clk 0:02:13]} 27. Bxe5 {[%clk 0:00:39]}  Bxf2+ {[%clk 0:02:10]} 28. Kh2 {[%clk 0:00:39]}  Bg3+ {[%clk 0:02:02]} 29. Bxg3 {[%clk 0:00:38]}  Qxg3+ {[%clk 0:01:56]} 30. Kg1 {[%clk 0:00:28]}  Qxb3 {[%clk 0:01:50]} 31. Qe2 {[%clk 0:00:26]}  Qxa4 {[%clk 0:01:34]} 32. Qxe4 {[%clk 0:00:24]}  Qxa2 {[%clk 0:01:33]} 33. Qa8+ {[%clk 0:00:24]}  Kh7 {[%clk 0:01:33]} 34. Qe4+ {[%clk 0:00:24]}  g6 {[%clk 0:01:30]} 35. Qh4+ {[%clk 0:00:21]}  Kg7 {[%clk 0:01:29]} 36. Qd4+ {[%clk 0:00:20]}  f6 {[%clk 0:01:30]} 37. Qxb6 {[%clk 0:00:20]}  Qxc4 {[%clk 0:01:28]} 38. Qa7+ {[%clk 0:00:20]}  Kh6 {[%clk 0:01:25]} 39. Qe3+ {[%clk 0:00:18]}  g5 {[%clk 0:01:24]} 40. Qa7 {[%clk 0:00:16]}  Kg6 {[%clk 0:01:19]} 41. Qe7 {[%clk 0:00:15]}  a5 {[%clk 0:01:10]} 42. g4 {[%clk 0:00:15]}  Qd4+ {[%clk 0:00:58]} 43. Kg2 {[%clk 0:00:14]}  Qd5+ {[%clk 0:00:57]} 44. Kg3 {[%clk 0:00:14]}  Qb3+ {[%clk 0:00:50]} 45. Kg2 {[%clk 0:00:13]}  e5 {[%clk 0:00:42]} 46. Qe8+ {[%clk 0:00:12]}  Kg7 {[%clk 0:00:40]} 47. Qd7+ {[%clk 0:00:11]}  Qf7 {[%clk 0:00:40]} 48. Qb5 {[%clk 0:00:11]}  Qa7 {[%clk 0:00:38]} 49. Qa4 {[%clk 0:00:10]}  Qb7+ {[%clk 0:00:38]} 50. Kg1 {[%clk 0:00:07]}  Qb6+ {[%clk 0:00:36]} 51. Kg2 {[%clk 0:00:06]}  Qb2+ {[%clk 0:00:35]} 52. Kg1 {[%clk 0:00:07]}  Qd4+ {[%clk 0:00:35]} 0-1


[Site "https://www.chess.com"]